bitfinex-derivatives/quotes_SOLF0:USTF0_20250522
["timestamp","ask_amount","ask_price","bid_price","bid_amount"]
[1747947168785,5.2348007,178.49,178.47,5.6014]
[1747947172390,4.94685625,178.48,178.47,5.6014]
[1747947210317,5.625e-05,178.48,178.47,5.6014]
[1747947222135,5.2348007,178.53,178.51,5.6002]
[1747947222532,5.2348007,178.53,178.5,0.04080334]
[1747947222825,5.2348007,178.53,178.5,5.64110334]
[1747947223227,5.2348007,178.53,178.51,5.6001]
[1747947223528,4.92416353,178.52,178.51,5.6001]
[1747947231538,4.92416353,178.52,178.5,5.64120334]
[1747947232636,4.92416353,178.51,178.5,5.64120334]
[1747947240445,4.92416353,178.51,178.5,11.42430153]
[1747947243757,7e-07,178.53,178.52,5.5999]
[1747947243934,6.97641833,178.55,178.52,120.00309819]
[1747947244140,6.97641833,178.55,178.54,5.78309819]
[1747947244339,6.97641833,178.58,178.57,5.5983]
[1747947247254,126.79321833,178.62,178.58,5.5979]
[1747947249451,121.19641833,178.62,178.59,5.5976]
[1747947250138,114.22,178.62,178.59,5.5976]
[1747947251349,114.22,178.62,178.58,5.5979]
[1747947251650,5.5966,178.63,178.58,5.5979]
[1747947252854,7.74889819,178.64,178.57,5.5982]
[1747947253248,5.5978,178.59,178.56,114.2603829]
[1747947253450,5.78309819,178.62,178.56,119.8586829]
[1747947253853,5.78309819,178.62,178.56,114.2603829]
[1747947254055,2.0389,178.61,178.56,0.0403829]
[1747947254462,5.5981,178.58,178.56,0.0403829]
[1747947254956,5.5978,178.59,178.56,5.6388829]
[1747947255146,5.5978,178.59,178.56,0.0403829]
[1747947255660,5.5978,178.59,178.56,5.6388829]
[1747947256256,4.84525119,178.57,178.56,5.6388829]
[1747947257161,4.84525119,178.57,178.56,0.0403829]
[1747947260974,10.44355119,178.57,178.56,0.0403829]
[1747947261765,4.84525119,178.57,178.56,0.0403829]
[1747947264472,4.84525119,178.57,178.56,5.6389829]
[1747947265278,4.84525119,178.57,178.56,0.0403829]
[1747947265972,10.44355119,178.57,178.56,0.0403829]
[1747947271373,10.44355119,178.57,178.56,8.29e-05]
[1747947272376,5.6,178.52,178.49,119.6605]
[1747947273369,5.63911176,178.52,178.49,5.63601291]
[1747947273576,5.82220995,178.52,178.49,0.03551291]
[1747947274080,5.6004,178.51,178.49,0.03551291]
[1747947274278,4.84525119,178.5,178.49,0.03551291]
[1747947274679,4.84525119,178.5,178.49,5.63601291]
[1747947275577,4.84525119,178.5,178.49,0.03551291]
[1747947279778,4.84525119,178.5,178.49,5.63631291]
[1747947280882,4.84525119,178.5,178.49,0.03551291]
[1747947281784,4.84525119,178.51,178.49,0.03551291]
[1747947282587,5.6005,178.5,178.49,0.03551291]
[1747947283087,10.44545119,178.51,178.49,0.03551291]
[1747947283388,4.84525119,178.5,178.49,0.03551291]
[1747947284787,5.63911176,178.52,178.49,0.03551291]
[1747947285189,0.03911176,178.52,178.49,0.03551291]
[1747947286289,4.83843782,178.51,178.49,5.63631291]
[1747947288586,0.03911176,178.52,178.49,5.63631291]
[1747947290093,0.03911176,178.52,178.5,5.6004]
[1747947290593,5.63901176,178.52,178.49,0.03551291]
[1747947290796,0.03911176,178.52,178.49,0.03551291]
[1747947291292,4.83789273,178.51,178.49,5.63611291]
[1747947292895,4.83789273,178.51,178.5,5.6005]
[1747947293498,0.03911176,178.52,178.5,5.6005]
[1747947294197,0.03911176,178.52,178.51,5.6002]
[1747947295098,4.87840981,178.52,178.51,5.6002]
[1747947297201,4.87840981,178.52,178.5,5.6004]
[1747947297400,4.87840981,178.52,178.49,0.03551291]
[1747947297901,4.83929805,178.51,178.5,5.6003]
[1747947298502,4.83929805,178.51,178.49,5.63621291]
[1747947300000,4.83929805,178.51,178.49,0.03551291]
[1747947300905,4.83929805,178.5,178.49,0.03551291]
[1747947301309,4.83929805,178.5,178.49,5.63631291]
[1747947302406,4.83929805,178.51,178.49,5.63631291]
[1747947304108,4.83929805,178.5,178.49,5.63631291]
[1747947305608,4.83929805,178.51,178.49,5.63631291]
[1747947306709,4.83929805,178.51,178.49,0.03551291]
[1747947307211,10.43979805,178.5,178.49,0.03551291]
[1747947309013,15.67282162,178.5,178.49,0.03551291]
[1747947314310,21.45591981,178.5,178.49,0.03551291]
[1747947314514,16.22289624,178.5,178.49,0.03551291]
[1747947315409,16.22289624,178.5,178.49,1.291e-05]
[1747947315614,5.6023,178.45,178.43,113.96]
[1747947315818,5.6023,178.45,178.4,403.26]
[1747947316012,5.6023,178.45,178.42,5.6029]
[1747947316212,5.6026,178.44,178.39,113.98]
[1747947316415,4.83929805,178.44,178.39,113.98]
[1747947316608,4.83929805,178.44,178.4,5.6034]
[1747947316808,5.64485607,178.43,178.4,5.64171794]
[1747947317012,0.04195607,178.43,178.41,5.6033]
[1747947317520,0.04195607,178.43,178.4,0.03831794]
[1747947317917,5.6032,178.42,178.4,0.03831794]
[1747947318414,0.04195607,178.43,178.4,0.03831794]
[1747947318622,10.62239624,178.42,178.4,0.03831794]
[1747947319319,5.6033,178.41,178.4,0.03831794]
[1747947320019,10.44259805,178.41,178.4,0.03831794]
[1747947320417,4.83929805,178.41,178.4,0.03831794]
[1747947321925,10.44259805,178.41,178.4,0.03831794]
[1747947322126,5.6033,178.41,178.4,0.03831794]
[1747947322924,11.38639819,178.41,178.4,0.03831794]
[1747947323823,5.6033,178.41,178.4,0.03831794]
[1747947324025,10.44259805,178.41,178.4,0.03831794]
[1747947325025,10.44259805,178.41,178.4,1.794e-05]
[1747947325222,5.6053,178.35,178.31,113.88]
[1747947325425,113.88,178.39,178.31,113.88]
[1747947325827,115.9021,178.39,178.31,119.4863]
[1747947326028,115.9021,178.39,178.31,113.88]
[1747947326230,115.9021,178.39,178.32,5.6059]
[1747947326429,0.03796432,178.37,178.33,0.04154929]
[1747947328230,5.6054,178.35,178.33,0.04154929]
[1747947328427,0.03796432,178.37,178.33,0.04154929]
[1747947328632,5.6055,178.34,178.33,0.04154929]
[1747947334238,0.03796432,178.37,178.33,0.04154929]
[1747947334435,0.03796432,178.37,178.34,5.6054]
[1747947334733,0.03796432,178.37,178.33,0.04154929]
[1747947335328,5.6051,178.36,178.33,5.64714929]
[1747947335629,5.6051,178.36,178.33,0.04154929]
[1747947335830,5.6051,178.36,178.33,5.64724929]
[1747947337937,5.6053,178.35,178.33,0.04154929]
[1747947339035,5.6053,178.35,178.33,5.64734929]
[1747947339835,5.6053,178.35,178.33,0.04154929]
[1747947340335,5.6055,178.34,178.33,0.04154929]
[1747947346336,113.94,178.35,178.23,115.8184]
[1747947346537,4.82068956,178.34,178.23,115.8184]
[1747947346939,4.82068956,178.34,178.29,5.6068]
[1747947347140,0.03570636,178.33,178.3,0.0421418]
[1747947347541,0.03570636,178.33,178.32,5.6062]
[1747947361753,4.88532395,178.33,178.32,5.6062]
[1747947368565,4.88532395,178.33,178.32,5.6062]
[1747947378566,5.23709735,178.4,178.38,5.6043]
[1747947378960,5.23709735,178.4,178.34,119.56957303]
[1747947379468,5.6034,178.41,178.34,119.56957303]
[1747947379665,0.04024289,178.39,178.36,0.03688719]
[1747947379857,0.04024289,178.39,178.36,5.64158719]
[1747947380659,5.6045,178.38,178.36,0.03688719]
[1747947383173,0.04024289,178.39,178.36,0.03688719]
[1747947384570,5.6046,178.38,178.36,0.03688719]
[1747947384765,0.04024289,178.39,178.36,0.03688719]
[1747947386168,5.27734024,178.39,178.38,5.6043]
[1747947389272,0.04024289,178.39,178.38,5.6043]
[1747947390673,0.04024289,178.39,178.38,119.3643]
[1747947400675,0.04024289,178.39,178.38,113.76]
[1747947402178,0.04024289,178.39,178.36,5.64168719]
[1747947404176,5.64434289,178.39,178.36,0.03688719]
[1747947404680,5.64434289,178.39,178.36,5.64178719]
[1747947405485,10.42312254,178.38,178.36,0.03688719]
[1747947406083,4.81882254,178.38,178.36,0.03688719]
[1747947406583,5.6046,178.37,178.36,0.03688719]
[1747947407182,10.42342254,178.37,178.36,0.03688719]
[1747947410687,4.81882254,178.37,178.36,0.03688719]
[1747947411388,10.42342254,178.37,178.36,0.03688719]
[1747947414097,4.81882254,178.37,178.36,0.03688719]
[1747947415407,4.81882254,178.37,178.36,5.64178719]
[1747947415900,4.81882254,178.37,178.36,0.03688719]
[1747947417902,10.42312254,178.38,178.36,0.03688719]
[1747947419704,4.81882254,178.37,178.36,0.03688719]
[1747947421404,10.42342254,178.37,178.36,0.03688719]
[1747947422103,4.81882254,178.37,178.36,0.03688719]
[1747947425110,4.81882254,178.37,178.36,5.64178719]
[1747947426209,0.04024289,178.39,178.38,5.6043]
[1747947427502,4.85623235,178.39,178.38,5.6043]
[1747947433619,4.85623235,178.39,178.37,5.6045]
[1747947433915,4.81598946,178.38,178.37,5.6045]
[1747947443621,5.23709735,178.44,178.36,119.50216261]
[1747947443816,5.23709735,178.44,178.39,5.78527542]
[1747947444112,5.23709735,178.44,178.4,113.62]
[1747947444725,5.27886374,178.44,178.4,113.66280201]
[1747947445417,0.04176639,178.44,178.4,113.66280201]
[1747947445616,0.04176639,178.44,178.41,5.78527542]
[1747947446320,0.04176639,178.44,178.43,5.6027]
[1747947450122,0.04176639,178.44,178.42,5.603]
[1747947450620,0.04176639,178.44,178.41,5.6031]
[1747947451427,0.04176639,178.44,178.4,113.66280201]
[1747947451620,0.04176639,178.44,178.4,0.04280201]
[1747947452120,5.6031,178.42,178.4,0.04280201]
[1747947454128,5.6027,178.43,178.4,0.04280201]
[1747947454628,5.64426639,178.44,178.41,5.6032]
[1747947454926,0.04176639,178.44,178.4,0.04280201]
[1747947455125,0.04176639,178.44,178.42,5.603]
[1747947456321,5.64416639,178.44,178.41,5.6032]
[1747947456729,4.78811149,178.43,178.41,5.6032]
[1747947458928,4.78811149,178.42,178.41,5.6032]
[1747947460229,4.78811149,178.42,178.4,5.64630201]
[1747947460531,4.78811149,178.42,178.4,0.04280201]
[1747947460937,4.78811149,178.42,178.41,5.6033]
[1747947461933,4.78811149,178.43,178.42,5.603]
[1747947465130,4.78811149,178.43,178.42,119.203]
[1747947478558,4.78811149,178.43,178.4,0.04280201]
[1747947479657,4.78811149,178.43,178.42,5.603]
[1747947480856,4.78811149,178.43,178.41,5.6032]
[1747947481156,4.78811149,178.43,178.4,0.04280201]
[1747947481656,4.78811149,178.43,178.42,5.603]
[1747947484454,0.04176639,178.44,178.43,5.6027]
[1747947484649,0.04176639,178.44,178.43,112.0827]
[1747947484853,5.23709735,178.49,178.43,106.48]
[1747947485960,0.03960083,178.48,178.44,0.0402208]
[1747947486257,0.03960083,178.48,178.45,113.5]
[1747947486656,0.03960083,178.48,178.47,5.6015]
[1747947487859,0.03960083,178.48,178.46,5.6015]
[1747947489561,0.03960083,178.48,178.45,119.1019]
[1747947493164,0.03960083,178.48,178.46,5.6016]
[1747947495958,0.03960083,178.48,178.47,5.6015]
[1747947496865,4.79916822,178.48,178.47,5.6015]
[1747947501367,4.79916822,178.48,178.46,5.6017]
[1747947502475,4.75956739,178.47,178.46,5.6017]
[1747947515486,4.75956739,178.47,178.45,113.5]
[1747947516284,4.75956739,178.47,178.45,119.102]
[1747947516485,4.75956739,178.47,178.45,113.5]
[1747947516786,10.36106739,178.47,178.45,113.5]
[1747947516987,4.75956739,178.47,178.45,113.5]
[1747947517386,4.75956739,178.47,178.45,119.102]
[1747947517589,4.75956739,178.47,178.45,113.5]
[1747947517991,4.75956739,178.47,178.46,5.6018]
[1747947519994,4.75956739,178.47,178.45,119.102]
[1747947520690,4.75956739,178.46,178.45,119.102]
[1747947522493,4.75956739,178.47,178.45,119.102]
[1747947523995,4.75956739,178.46,178.45,119.102]
[1747947524798,4.75956739,178.46,178.45,119.1021]
[1747947526008,4.75956739,178.47,178.46,5.6018]
[1747947530617,4.75956739,178.47,178.45,113.5]
[1747947530816,4.75956739,178.47,178.46,5.6018]
[1747947534610,4.75956739,178.47,178.45,113.5]
[1747947535206,10.36116739,178.47,178.45,113.5]
[1747947535814,4.75956739,178.46,178.45,113.5]
[1747947537016,4.75956739,178.46,178.45,119.1021]
[1747947539214,4.75956739,178.46,178.45,5.6021]
[1747947546421,6.739e-05,178.46,178.45,5.6021]
[1747947546717,5.23709735,178.5,178.44,5.82253804]
[1747947546921,5.23709735,178.5,178.49,5.78231724]
[1747947547121,5.23709735,178.5,178.49,119.02231724]
[1747947547621,5.23709735,178.5,178.49,124.62311724]
[1747947548623,6.97257971,178.53,178.52,5.5999]
[1747947548827,5.23709735,178.56,178.49,119.02231724]
[1747947549324,5.23709735,178.56,178.53,5.5994]
[1747947549527,5.23709735,178.56,178.53,5.63989552]
[1747947549725,5.23709735,178.56,178.53,0.04049552]
[1747947551022,5.23709735,178.56,178.53,5.63999552]
[1747947551325,7.6275,178.57,178.53,5.63999552]
[1747947551728,2.0291,178.57,178.53,5.63999552]
[1747947553225,7.6274,178.57,178.53,5.63999552]
[1747947555728,7.6274,178.57,178.54,5.5992]
[1747947556028,7.6274,178.57,178.53,0.04049552]
[1747947556626,7.6274,178.57,178.53,5.63979552]
[1747947557931,7.6274,178.57,178.54,5.5992]
[1747947558431,2.0291,178.57,178.53,0.04049552]
[1747947559331,5.5992,178.55,178.53,0.04049552]
[1747947560031,4.68490317,178.54,178.53,0.04049552]
[1747947562834,10.28420317,178.54,178.53,0.04049552]
[1747947570044,5.5993,178.54,178.53,0.04049552]
[1747947570351,10.28540955,178.54,178.53,0.04049552]
[1747947570745,4.68610955,178.54,178.53,0.04049552]
[1747947576951,10.28540955,178.54,178.53,0.04049552]
[1747947577759,4.68610955,178.54,178.53,0.04049552]
[1747947580850,4.68610955,178.54,178.53,113.12049552]
[1747947581057,4.68610955,178.54,178.53,118.72009552]
[1747947581255,5.21832576,178.58,178.53,113.12049552]
[1747947581460,5.21832576,178.58,178.53,118.89750675]
[1747947581762,5.21832576,178.58,178.57,5.5983]
[1747947583357,9.90679511,178.58,178.57,5.5983]
[1747947583564,4.68846935,178.58,178.57,5.5983]
[1747947586761,4.68846935,178.58,178.53,118.89750675]
[1747947587367,4.68846935,178.58,178.55,5.5987]
[1747947587558,4.68846935,178.58,178.53,118.89750675]
[1747947587760,4.68846935,178.57,178.53,118.89750675]
[1747947587954,4.68846935,178.57,178.56,5.5985]
[1747947600866,4.68846935,178.57,178.54,5.599]
[1747947601071,4.68846935,178.57,178.54,112.9]
[1747947601374,10.28686935,178.57,178.54,112.9]
[1747947601571,4.68846935,178.56,178.54,112.9]
[1747947601972,10.28706935,178.56,178.54,112.9]
[1747947602166,10.28706935,178.56,178.53,0.04049552]
[1747947603274,4.68846935,178.55,178.53,0.04049552]
[1747947603573,4.68846935,178.55,178.53,5.63999552]
[1747947604874,4.68846935,178.54,178.53,5.63999552]
[1747947605973,4.68846935,178.54,178.53,0.04049552]
[1747947607271,4.68846935,178.54,178.53,5.64009552]
[1747947610376,4.68846935,178.54,178.53,0.04049552]
[1747947613080,10.28776935,178.54,178.53,0.04049552]
[1747947615080,4.68846935,178.54,178.53,0.04049552]
[1747947615981,10.28776935,178.54,178.53,0.04049552]
[1747947629189,4.68846935,178.54,178.33,28.33544128]
[1747947629494,5.77701123,178.5,178.43,112.82]
[1747947629686,5.77701123,178.48,178.43,112.82]
[1747947629885,5.77701123,178.46,178.4,112.82]
[1747947630081,112.82,178.51,178.4,112.82]
[1747947630283,5.6033,178.41,178.4,112.82]
[1747947630486,5.6033,178.41,178.39,0.0375561]
[1747947630681,0.04049553,178.42,178.39,0.0375561]
[1747947630994,5.64359553,178.42,178.39,0.0375561]
[1747947632098,0.04049553,178.42,178.39,0.0375561]
[1747947632287,0.04049553,178.42,178.39,5.6414561]
[1747947632489,0.04049553,178.42,178.39,0.0375561]
[1747947632894,0.04049553,178.42,178.4,5.6037]
[1747947633097,0.04049553,178.42,178.39,0.0375561]
[1747947634896,0.04049553,178.42,178.4,5.6033]
[1747947635297,0.04049553,178.42,178.39,0.0375561]
[1747947635500,0.04049553,178.42,178.4,5.6037]
[1747947635897,0.04049553,178.42,178.39,0.0375561]
[1747947636099,0.04049553,178.42,178.41,5.6033]
[1747947637102,0.04049553,178.42,178.4,5.6035]
[1747947638604,0.04049553,178.42,178.41,5.6033]
[1747947643201,0.04049553,178.42,178.4,5.6036]
[1747947644300,0.04049553,178.42,178.39,0.0375561]
[1747947645607,5.64369553,178.42,178.39,0.0375561]
[1747947645809,0.04049553,178.42,178.39,0.0375561]
[1747947646103,0.04049553,178.42,178.39,5.6414561]
[1747947647107,5.64359553,178.42,178.39,5.6414561]
[1747947654115,5.64359553,178.42,178.4,5.6036]
[1747947655818,5.64359553,178.42,178.39,5.6413561]
[1747947656518,5.6034,178.41,178.39,0.0375561]
[1747947656718,5.8262455,178.42,178.39,0.0375561]
[1747947657113,5.6037,178.4,178.39,0.0375561]
[1747947659219,5.64359553,178.42,178.39,5.6414561]
[1747947660320,5.6033,178.41,178.39,0.0375561]
[1747947660516,0.04049553,178.42,178.39,0.0375561]
[1747947661227,5.64379553,178.42,178.39,0.0375561]
[1747947661821,5.6034,178.41,178.39,0.0375561]
[1747947662425,0.04049553,178.42,178.39,0.0375561]
[1747947662624,5.6037,178.4,178.39,0.0375561]
[1747947663922,5.6052,178.35,178.32,5.6061]
[1747947664224,5.78574997,178.38,178.32,5.6061]
[1747947664428,5.6054,178.35,178.32,5.6061]
[1747947664615,5.78574997,178.38,178.31,112.8]
[1747947665015,5.64045355,178.36,178.33,0.03969665]
[1747947665215,0.03545355,178.36,178.33,0.03969665]
[1747947666128,0.03545355,178.36,178.34,5.6054]
[1747947667428,5.64035355,178.36,178.34,5.6054]
[1747947669230,5.64035355,178.36,178.33,5.64549665]
[1747947669527,0.03545355,178.36,178.33,0.03969665]
[1747947669728,0.03545355,178.36,178.34,5.6054]
[1747947670430,0.03545355,178.36,178.33,5.64539665]
[1747947671726,5.64045355,178.36,178.33,0.03969665]
[1747947674031,5.64045355,178.36,178.33,5.64539665]
[1747947674432,0.03545355,178.36,178.33,5.64539665]
[1747947676536,5.64045355,178.36,178.33,0.03969665]
[1747947678639,5.64045355,178.36,178.33,5.64549665]
[1747947678829,0.03545355,178.36,178.33,0.03969665]
[1747947680031,5.6056,178.34,178.33,0.03969665]
[1747947680539,0.03545355,178.36,178.33,0.03969665]
[1747947681040,0.03545355,178.36,178.34,5.6056]
[1747947684132,0.03545355,178.36,178.35,5.6052]
[1747947685142,0.03545355,178.36,178.34,5.6055]
[1747947689542,0.03545355,178.36,178.35,5.6052]
[1747947689847,0.03545355,178.36,178.33,0.03969665]
[1747947690045,0.03545355,178.36,178.34,5.6054]
[1747947695743,0.03545355,178.36,178.33,0.03969665]
[1747947696737,4.76045483,178.35,178.33,0.03969665]
[1747947696937,5.6056,178.34,178.33,0.03969665]
[1747947699457,10.36605483,178.34,178.33,0.03969665]
[1747947713775,4.76045483,178.34,178.33,5.64559665]
[1747947716383,0.03545355,178.36,178.34,5.6056]
[1747947717182,0.03545355,178.36,178.35,5.6052]
[1747947717382,4.78182224,178.36,178.35,5.6052]
[1747947717585,4.78182224,178.36,178.33,0.03969665]
[1747947718484,10.56757221,178.36,178.33,0.03969665]
[1747947718781,4.74636869,178.35,178.33,0.03969665]
[1747947719587,5.6056,178.34,178.33,0.03969665]
[1747947719973,10.35196869,178.34,178.33,0.03969665]
[1747947720687,4.74636869,178.34,178.33,0.03969665]
[1747947721992,10.35196869,178.34,178.33,0.03969665]
[1747947724290,4.74636869,178.34,178.33,0.03969665]
[1747947725090,4.74636869,178.34,178.33,5.64559665]
[1747947725589,0.03545355,178.36,178.35,5.6052]
[1747947729188,5.355e-05,178.36,178.35,5.6052]
[1747947747597,5.355e-05,178.36,178.35,11.39121203]
[1747947751407,5.355e-05,178.36,178.35,5.6052]
[1747947751617,5.355e-05,178.36,178.35,117.89121203]
[1747947752209,5.355e-05,178.36,178.35,11.39121203]
[1747947752411,5.355e-05,178.36,178.35,117.89121203]
[1747947754810,5.355e-05,178.36,178.35,112.1052]
[1747947759305,5.355e-05,178.36,178.35,5.6052]
[1747947763809,5.355e-05,178.36,178.35,11.39121203]
[1747947766212,5.355e-05,178.36,178.33,0.03969665]
[1747947766416,5.78601203,178.34,178.28,8.68638898]
[1747947766618,5.78601203,178.32,178.28,8.68638898]
[1747947767318,5.607,178.3,178.28,8.72747712]
[1747947767821,5.6071,178.29,178.28,8.72747712]
[1747947768118,0.03586008,178.32,178.28,8.72747712]
[1747947768824,4.71499874,178.29,178.28,0.04108814]
[1747947769620,10.32209874,178.29,178.28,0.04108814]
[1747947769820,5.6071,178.29,178.28,0.04108814]
[1747947784342,5.609,178.23,178.22,112.62]
[1747947784641,125.71294653,178.3,178.19,112.62]
[1747947784828,5.6092,178.23,178.19,112.62]
[1747947785341,125.71294653,178.3,178.2,5.6097]
[1747947785639,5.6088,178.24,178.23,0.03718941]
[1747947787737,5.6085,178.25,178.23,0.03718941]
[1747947788945,5.6087,178.24,178.23,0.03718941]
[1747947789143,0.03816644,178.27,178.23,0.03718941]
[1747947789644,5.6085,178.25,178.23,0.03718941]
[1747947796347,5.83483917,178.27,178.23,0.03718941]
[1747947797649,5.6087,178.24,178.23,0.03718941]
[1747947808055,5.6087,178.25,178.23,0.03718941]
[1747947808256,0.03816644,178.27,178.23,0.03718941]
[1747947808654,0.03816644,178.27,178.24,5.6085]
[1747947808861,0.03816644,178.27,178.23,0.03718941]
[1747947809355,0.03816644,178.27,178.23,112.61718941]
[1747947809957,0.03816644,178.27,178.23,118.41386214]
[1747947810856,0.03816644,178.27,178.26,5.6081]
[1747947811646,5.21832576,178.33,178.25,5.79667273]
[1747947811951,5.21832576,178.33,178.27,5.79667273]
[1747947812259,4.70593378,178.32,178.28,112.56]
[1747947812557,4.70593378,178.32,178.31,5.6065]
[1747947812853,4.74727812,178.32,178.31,5.6065]
[1747947814062,0.04134434,178.32,178.31,5.6065]
[1747947833865,0.04134434,178.32,178.31,11.39500707]
[1747947839572,4.434e-05,178.32,178.31,11.39500707]
[1747947839869,116.544,178.42,178.31,5.78850707]
[1747947840068,4.024,178.42,178.35,5.78850707]
[1747947840268,5.6036,178.41,178.37,5.6045]
[1747947840575,4.024,178.42,178.36,112.42]
[1747947840867,0.04103643,178.41,178.37,0.03795922]
[1747947841272,0.04103643,178.41,178.39,5.6039]
[1747947841460,0.04103643,178.41,178.37,0.03795922]
[1747947841773,0.04103643,178.41,178.38,5.6041]
[1747947843675,5.64453643,178.41,178.38,5.6041]
[1747947843970,5.64453643,178.41,178.37,5.64245922]
[1747947844470,5.6037,178.4,178.37,5.64245922]
[1747947844774,5.6037,178.4,178.37,0.03795922]
[1747947844975,0.04103643,178.41,178.37,0.03795922]
[1747947845669,5.64443643,178.41,178.37,0.03795922]
[1747947845870,0.04103643,178.41,178.37,0.03795922]
[1747947846070,0.04103643,178.41,178.38,5.78850707]
[1747947846375,0.04103643,178.41,178.4,5.78850707]
[1747947846673,0.04103643,178.41,178.4,118.20850707]
[1747947847577,0.04103643,178.41,178.4,123.81220707]
[1747947847869,11.10352576,178.49,178.4,118.20850707]
[1747947848076,11.10352576,178.49,178.43,5.78850707]
[1747947848280,11.10352576,178.49,178.46,5.6015]
[1747947848676,11.10352576,178.49,178.46,0.03855535]
[1747947849079,16.70442576,178.49,178.46,0.03855535]
[1747947849279,5.8852,178.49,178.46,0.03855535]
[1747947849578,5.6015,178.47,178.46,0.03855535]
[1747947867599,10.28885082,178.47,178.46,0.03855535]
[1747947869200,5.6015,178.47,178.46,0.03855535]
[1747947872103,10.29230602,178.47,178.46,0.03855535]
[1747947877707,4.69080602,178.47,178.46,0.03855535]
[1747947878009,5.20229093,178.5,178.46,0.03855535]
[1747947878309,10.80299093,178.5,178.47,5.6013]
[1747947879916,4.70115056,178.49,178.46,5.64025535]
[1747947881114,5.6015,178.47,178.46,0.03855535]
[1747947881612,5.603,178.42,178.41,112.26]
[1747947881814,5.78283751,178.47,178.38,117.8643]
[1747947882010,5.78283751,178.45,178.38,112.26]
[1747947882204,5.604,178.39,178.38,112.26]
[1747947882512,0.0394067,178.4,178.37,0.03826935]
[1747947883610,5.6433067,178.4,178.37,0.03826935]
[1747947883914,0.0394067,178.4,178.37,0.03826935]
[1747947884113,0.0394067,178.4,178.37,5.64276935]
[1747947886416,0.0394067,178.4,178.38,5.6042]
[1747947886913,0.0394067,178.4,178.39,5.604]
[1747947889618,0.0394067,178.4,178.38,5.6042]
[1747947889821,0.0394067,178.4,178.37,0.03826935]
[1747947891620,0.0394067,178.4,178.38,5.6041]
[1747947893022,0.0394067,178.4,178.38,5.604]
[1747947893521,5.6042,178.39,178.37,0.03826935]
[1747947894121,5.6043,178.38,178.37,0.03826935]
[1747947894325,10.30545056,178.38,178.37,0.03826935]
[1747947897826,4.70115056,178.38,178.37,0.03826935]
[1747947899628,4.70115056,178.38,178.37,5.64286935]
[1747947899821,4.70115056,178.39,178.37,5.64286935]
[1747947900332,4.70115056,178.39,178.37,0.03826935]
[1747947900928,5.6043,178.38,178.37,0.03826935]
[1747947901527,10.30545056,178.38,178.37,0.03826935]
[1747947902229,4.70115056,178.38,178.37,0.03826935]
[1747947906334,5.6043,178.38,178.37,0.03826935]
[1747947911333,10.32538577,178.38,178.37,0.03826935]
[1747947912030,4.72108577,178.38,178.29,112.22]
[1747947912537,5.6057,178.34,178.31,5.6063]
[1747947912937,5.64357983,178.34,178.31,5.64346965]
[1747947913338,0.03787983,178.34,178.31,0.03716965]
[1747947914041,0.03787983,178.34,178.32,5.6062]
[1747947914246,0.03787983,178.34,178.31,0.03716965]
[1747947914638,0.03787983,178.34,178.33,5.6059]
[1747947916241,0.03787983,178.34,178.32,5.6061]
[1747947917648,5.64347983,178.34,178.32,5.6061]
[1747947919137,5.64347983,178.34,178.31,5.64356965]
[1747947923742,5.606,178.33,178.31,0.03716965]
[1747947924740,5.6062,178.32,178.31,0.03716965]
[1747947925042,0.03787983,178.34,178.31,0.03716965]
[1747947925346,5.6061,178.33,178.31,0.03716965]
[1747947925642,5.6061,178.33,178.31,5.64366965]
[1747947925951,0.03787983,178.34,178.31,0.03716965]
[1747947926248,0.03787983,178.34,178.33,5.6059]
[1747947927548,4.77884852,178.34,178.33,5.6059]
[1747947928050,4.77884852,178.34,178.32,5.6061]
[1747947928844,4.77884852,178.34,178.33,5.6059]
[1747947944959,4.77884852,178.34,178.31,0.03716965]
[1747947945663,10.38444852,178.34,178.31,5.64346965]
[1747947946258,4.74096869,178.33,178.31,5.64346965]
[1747947948960,10.34696869,178.33,178.31,0.03716965]
[1747947950364,4.74096869,178.32,178.31,0.03716965]
[1747947951065,4.74096869,178.32,178.31,5.64366965]
[1747947951466,4.74096869,178.32,178.31,0.03716965]
[1747947954075,4.74096869,178.32,178.31,5.64366965]
[1747947956377,4.74096869,178.32,178.31,0.03716965]
[1747947957278,10.34716869,178.32,178.31,0.03716965]
[1747947957777,4.74096869,178.32,178.31,0.03716965]
[1747947960580,4.74096869,178.32,178.31,5.64366965]
[1747947960780,10.34686869,178.33,178.31,0.03716965]
[1747947961383,4.74096869,178.33,178.31,0.03716965]
[1747947962579,4.74096869,178.32,178.31,0.03716965]
[1747947962783,4.74096869,178.32,178.31,5.64366965]
[1747947963979,4.74096869,178.33,178.31,5.64366965]